bitfinex/quotes_ETHUSD_20250219
["timestamp","ask_amount","ask_price","bid_price","bid_amount"]
[1739971751860,0.7926,2717.9,2717.4,3.6799]
[1739971752049,0.7926,2717.9,2717.4,7.35979]
[1739971752244,0.447179,2717.8,2717.4,7.35979]
[1739971752645,0.447179,2717.8,2717.5,3.67978]
[1739971752843,0.447179,2717.8,2717.4,3.67989]
[1739971752844,0.7926,2717.9,2717.4,3.67989]
[1739971753362,0.7926,2717.9,2717.4,7.35981]
[1739971753671,0.7926,2717.9,2717.6,3.67965]
[1739971754173,0.7926,2717.9,2717.6,7.35929]
[1739971754539,0.7926,2717.9,2717.6,7.35928]
[1739971754742,0.7926,2717.9,2717.7,3.6795]
[1739971757067,0.7926,2717.9,2717.6,3.6797]
[1739971757637,0.7926,2717.9,2717.7,3.67956]
[1739971760395,0.7926,2717.9,2717.5,3.67983]
[1739971760541,0.7926,2717.9,2717.5,7.35958]
[1739971760895,0.7926,2717.9,2717.5,3.67975]
[1739971761395,0.7926,2717.9,2717.5,7.3595]
[1739971761675,0.7926,2717.9,2717.5,3.67975]
[1739971761842,0.7926,2717.9,2717.6,3.67968]
[1739971764893,0.7926,2717.9,2717.5,3.67975]
[1739971765109,0.7926,2717.9,2717.6,3.6797]
[1739971765409,0.7926,2717.9,2717.5,3.67975]
[1739971765612,0.7926,2717.9,2717.5,3.67974]
[1739971765813,0.7926,2717.9,2717.6,3.67961]
[1739971767140,0.7926,2717.9,2717.5,4.610294]
[1739971767736,0.7926,2717.9,2717.5,0.930474]
[1739971767940,0.7926,2717.9,2717.5,4.610204]
[1739971768234,4.47191,2717.9,2717.4,3.67993]
[1739971768379,4.47191,2717.9,2717.3,9.3051]
[1739971768584,0.7543,2717.8,2717.3,3.9451]
[1739971768802,0.7543,2717.8,2717.4,3.67998]
[1739971769409,0.7543,2717.8,2717.4,3.67997]
[1739971770226,0.7543,2717.8,2717.5,3.67984]
[1739971771248,0.7543,2717.8,2717.5,3.67985]
[1739971771454,0.7805,2718.3,2717.5,0.367985]
[1739971771738,0.7805,2718.3,2717.8,3.67935]
[1739971772097,7.45934,2718.3,2717.8,3.67943]
[1739971773118,4.49107,2718.2,2717.6,3.67966]
[1739971773318,0.8121,2718.1,2717.6,3.67966]
[1739971773535,0.8121,2718.1,2717.7,3.67955]
[1739971774442,0.8121,2718.1,2717.6,3.67966]
[1739971774443,0.8121,2718.1,2717.8,3.67943]
[1739971774833,0.8121,2718.1,2717.6,3.67966]
[1739971775356,0.8121,2718.1,2717.6,3.67963]
[1739971775956,0.8121,2718.1,2717.6,3.67968]
[1739971776121,1.929086,2718.1,2717.6,3.67968]
[1739971777055,1.929086,2718.1,2717.7,3.67952]
[1739971777252,1.929086,2718.1,2717.7,7.35902]
[1739971777553,1.929086,2718.1,2717.7,3.6795]
[1739971777954,1.929086,2718.1,2717.7,7.35898]
[1739971778108,0.8121,2718.1,2717.7,7.35898]
[1739971778309,0.8121,2718.1,2717.7,3.67948]
[1739971778941,0.8121,2718.1,2717.8,3.67932]
[1739971779150,0.8121,2718.1,2717.8,7.35865]
[1739971779309,0.8121,2718.1,2717.8,3.67932]
[1739971779711,0.8121,2718.1,2717.6,3.67963]
[1739971779912,1.561206,2718.1,2717.6,3.67963]
[1739971780867,0.8121,2718.1,2717.7,3.67958]
[1739971784440,0.8121,2718.1,2717.8,3.67941]
[1739971784951,4.49116,2718.1,2717.5,7.35951]
[1739971785172,4.49116,2718.1,2717.4,9.30487]
[1739971785173,0.8176,2717.9,2717.4,9.30487]
[1739971785375,0.8176,2717.9,2717.5,3.6798]
[1739971785876,0.7778,2717.8,2717.4,9.03987]
[1739971786578,0.7778,2717.8,2717.5,3.67982]
[1739971786878,0.7778,2717.8,2717.5,3.67983]
[1739971788482,0.7778,2717.8,2717.2,9.04015]
[1739971788655,0.7778,2717.8,2717.3,3.6801]
[1739971789145,0.7778,2717.8,2717.4,3.67996]
[1739971790087,0.7778,2717.8,2717.4,3.67986]
[1739971790289,0.7778,2717.8,2717.4,7.35976]
[1739971790581,0.7778,2717.8,2717.4,3.67986]
[1739971790749,4.45725,2717.8,2717.2,9.04018]
[1739971790948,0.8177,2717.7,2717.3,3.68001]
[1739971791493,0.8177,2717.7,2717.3,3.68011]
[1739971792786,0.8177,2717.7,2717.1,3.94535]
[1739971792954,1.3123834,2717.7,2717.2,3.68024]
[1739971793150,0.7813,2717.6,2717.2,3.68024]
[1739971793689,0.7813,2717.6,2717.3,3.68009]
[1739971794494,0.7813,2717.6,2717.2,3.68023]
[1739971794663,0.7813,2717.6,2717.3,3.68012]
[1739971796275,0.7813,2717.6,2717.1,3.68035]
[1739971796458,0.7813,2717.6,2717.2,3.68023]
[1739971797193,1.27686234,2717.6,2717.2,3.68023]
[1739971797690,1.27686234,2717.6,2717.1,3.68028]
[1739971797893,0.783,2717.5,2716.9,3.94554]
[1739971798094,4.46285,2717.5,2717.0,3.68046]
[1739971798400,5.37612357,2717.5,2717.0,3.68046]
[1739971798581,1.69410179,2717.4,2717.0,3.68046]
[1739971798758,0.7825,2717.3,2717.0,3.68046]
[1739971800696,0.7825,2717.3,2716.9,3.68065]
[1739971801081,0.7825,2717.3,2717.1,3.6803]
[1739971801597,0.7825,2717.3,2717.1,7.36061]
[1739971802170,0.7825,2717.3,2717.1,3.6803]
[1739971802378,0.7825,2717.3,2717.1,7.36058]
[1739971802581,0.7825,2717.3,2717.1,3.68028]
[1739971803216,0.7825,2717.3,2717.1,7.36059]
[1739971803423,0.7825,2717.3,2717.0,3.68051]
[1739971803581,0.7825,2717.3,2717.1,3.6803]
[1739971804088,0.7825,2717.3,2716.9,3.68057]
[1739971804272,0.7825,2717.3,2717.1,3.68037]
[1739971804674,0.7825,2717.3,2717.2,3.68025]
[1739971805287,0.7825,2717.3,2717.1,3.68037]
[1739971805537,0.6841,2717.3,2717.1,3.68037]
[1739971805905,0.6841,2717.3,2717.2,3.68025]
[1739971807535,0.6841,2717.3,2717.1,3.68029]
[1739971807689,0.6841,2717.3,2717.1,7.36062]
[1739971808836,0.8161,2717.6,2717.2,3.68025]
[1739971809005,0.8161,2717.6,2717.1,3.68029]
[1739971809205,0.8161,2717.6,2717.2,3.68015]
[1739971809819,0.8161,2717.6,2717.2,3.68025]
[1739971810021,4.49582,2717.6,2717.2,3.68025]
[1739971810290,5.313348,2717.6,2717.0,3.68044]
[1739971810447,0.7984,2717.5,2717.1,3.68037]
[1739971810895,0.7984,2717.5,2717.0,7.36089]
[1739971811195,0.7984,2717.5,2717.0,3.68044]
[1739971811351,0.7984,2717.5,2717.2,3.68024]
[1739971812402,0.7984,2717.5,2717.2,7.36042]
[1739971812555,0.7984,2717.5,2717.2,3.68018]
[1739971813256,0.7984,2717.5,2717.1,3.68038]
[1739971813474,0.7984,2717.5,2717.2,3.68023]
[1739971815695,0.7984,2717.5,2717.1,7.36058]
[1739971815880,0.7984,2717.5,2717.1,3.68029]
[1739971816079,4.47827,2717.5,2716.8,0.74034464]
[1739971816284,0.7894,2717.3,2716.8,3.68071]
[1739971816993,0.7894,2717.3,2716.9,3.68057]
[1739971817371,4.50202,2717.2,2716.6,9.04099]
[1739971817567,4.50202,2717.2,2716.7,3.68089]
[1739971818372,0.8217,2717.2,2716.8,3.68072]
[1739971818572,0.8217,2717.2,2717.0,3.68046]
[1739971818774,0.79,2717.4,2717.0,3.68046]
[1739971820609,0.79,2717.4,2717.0,7.36089]
[1739971821104,0.79,2717.4,2717.1,3.68037]
[1739971821632,0.79,2717.4,2716.9,3.68065]
[1739971821974,3.67999,2717.4,2716.9,3.68065]
[1739971822274,0.8258,2717.3,2716.9,3.68065]
[1739971822808,2.52015409,2717.3,2716.9,3.68065]
[1739971823230,6.20035409,2717.3,2716.7,3.68085]
[1739971824021,0.757,2717.2,2716.7,3.68085]
[1739971824422,4.43727,2717.2,2716.7,3.68085]
[1739971824780,2.51465409,2717.1,2716.5,4.4184872]
[1739971825007,0.8203,2716.9,2716.6,3.68106]
[1739971825309,0.8203,2716.9,2716.5,3.68109]
[1739971825677,0.8203,2716.9,2716.4,3.68133]
[1739971826007,0.8203,2716.9,2716.5,3.6812]
[1739971826310,0.8203,2716.9,2716.6,3.68106]
[1739971826908,0.8203,2716.9,2716.6,7.36205]
[1739971827115,0.8203,2716.9,2716.7,3.68093]
[1739971828311,0.8203,2716.9,2716.8,3.6808]
[1739971828613,0.793,2717.2,2716.9,3.68064]
[1739971830177,0.793,2717.2,2717.0,3.68052]
[1739971830399,0.7654,2717.4,2717.0,3.68052]
[1739971830998,0.7654,2717.4,2716.8,3.68079]
[1739971831204,0.7654,2717.4,2716.9,3.68065]
[1739971831583,0.7654,2717.4,2717.1,3.6803]
[1739971833819,0.7654,2717.4,2717.1,7.36063]
[1739971834117,0.7654,2717.4,2717.1,3.6803]
[1739971834301,0.7654,2717.4,2717.1,7.36059]
[1739971834720,0.7654,2717.4,2717.1,3.68029]
[1739971837480,0.7654,2717.4,2717.2,3.68024]
[1739971839719,0.8282,2717.6,2717.2,4.41537414]
[1739971840617,0.8282,2717.6,2717.2,4.41531414]
[1739971841005,3.7939,2717.8,2717.5,3.67978]
[1739971842389,3.7939,2717.8,2717.4,4.44506]
[1739971842631,10.75372409,2717.9,2717.2,0.73513414]
[1739971842632,0.7749,2717.6,2717.2,0.73513414]
[1739971842816,4.45463,2717.6,2717.1,0.265]
[1739971843129,4.45463,2717.6,2717.1,3.94539]
[1739971844087,0.7749,2717.6,2717.1,3.94529]
[1739971844288,0.7749,2717.6,2717.2,3.68024]
[1739971845121,0.7749,2717.6,2717.3,3.68008]
[1739971845321,0.7749,2717.6,2717.4,3.67996]
[1739971846004,0.8081,2717.8,2717.4,3.67991]
[1739971848827,0.8081,2717.8,2717.4,3.67987]
[1739971849027,0.8081,2717.8,2717.4,8.09946074]
[1739971849330,4.48757,2717.8,2717.4,4.41955074]
[1739971849531,3.67968,2717.7,2717.1,4.71042]
[1739971849827,3.67958,2717.7,2717.1,4.71042]
[1739971850022,5.37393409,2717.7,2717.1,4.71042]
[1739971850329,5.37393409,2717.7,2717.1,1.0301]
[1739971850629,5.37393409,2717.7,2717.2,3.68024]
[1739971851491,5.37393409,2717.7,2717.2,7.36048]
[1739971851827,1.69435409,2717.7,2717.2,3.68024]
[1739971852032,0.8081,2717.8,2717.4,3.67996]
[1739971852529,4.48756,2717.8,2717.4,3.67996]
[1739971852723,0.8081,2717.8,2717.4,3.67996]
[1739971853333,4.48755,2717.8,2717.4,3.67996]
[1739971854416,3.67965,2717.7,2717.3,3.68012]
[1739971854620,3.67965,2717.7,2717.3,0.839042]
[1739971855039,3.67971,2717.6,2717.3,0.839042]
[1739971855330,3.67965,2717.7,2717.1,4.71037]
[1739971855896,3.67965,2717.7,2717.2,3.68025]
[1739971856331,3.67965,2717.7,2717.1,4.71037]
[1739971856537,3.67972,2717.6,2717.1,4.71037]
[1739971856830,0.8081,2717.8,2717.1,1.0301]
[1739971857032,3.67959,2717.7,2717.1,1.91167566]
[1739971857436,3.67973,2717.6,2717.1,1.91167566]
[1739971857739,0.7839,2717.5,2717.1,1.91167566]
[1739971857910,4.46377,2717.5,2717.1,1.64667566]
[1739971858253,0.7839,2717.1,2717.0,5.36]
[1739971858738,0.7839,2717.3,2717.0,5.36]
[1739971860849,0.7839,2717.3,2716.9,4.44573]
[1739971861007,0.7839,2717.3,2716.9,4.48253294]
[1739971861212,0.7839,2717.3,2716.9,5.29886023]
[1739971861628,0.7839,2717.3,2716.9,5.26205729]
[1739971863164,4.46408,2717.3,2716.9,1.58142729]
[1739971863755,3.68031,2717.2,2716.9,0.81632729]
[1739971864047,3.68031,2717.2,2716.7,0.7651]
[1739971864253,1.69435409,2717.1,2716.6,13.635]
[1739971864440,4.4718,2716.9,2716.6,8.275]
[1739971865438,0.7911,2716.9,2716.6,8.275]
[1739971868166,4.47186,2716.9,2716.6,8.275]
[1739971868773,3.68083,2716.8,2716.6,8.275]
[1739971869781,3.6809,2716.8,2716.6,8.275]
[1739971871229,3.68093,2716.7,2716.6,8.275]
[1739971871431,4.47503,2716.7,2716.6,8.275]
[1739971871730,0.7941,2716.7,2716.3,3.68145]
[1739971871932,3.68113,2716.6,2716.0,3.68181]
[1739971872152,3.68113,2716.6,2716.0,3.6818]
[1739971873235,6.16971409,2716.5,2716.0,3.68181]
[1739971873439,1.69435409,2716.3,2715.9,0.72455268]
[1739971873732,5.37584409,2716.3,2715.8,3.68205]
[1739971873945,0.7799,2716.2,2715.8,3.68205]
[1739971874239,0.7799,2716.2,2715.8,3.68212]
[1739971874582,0.7799,2716.2,2715.8,3.68207]
[1739971875571,1.69435409,2716.0,2715.8,3.68207]
[1739971875744,2.47425409,2716.2,2715.8,3.68207]
[1739971876155,6.15586409,2716.2,2715.6,11.95936]
[1739971876345,3.68185,2716.1,2715.6,8.277]
[1739971876553,5.37596409,2716.2,2715.6,8.277]
[1739971876554,4.4367,2716.0,2715.6,8.277]
[1739971877973,6.13105409,2716.0,2715.6,8.277]
[1739971878743,0.98127341,2716.0,2715.6,8.277]
[1739971879090,3.68219,2715.8,2715.6,8.277]
[1739971879278,4.4517,2715.6,2714.9,3.68328]
[1739971879776,0.7692,2715.4,2714.8,3.68349]
[1739971880077,4.45216,2715.2,2714.5,3.94881]
[1739971880250,4.45216,2715.2,2714.6,3.68376]
[1739971880460,0.7692,2715.2,2714.6,3.68376]
[1739971880852,4.45223,2715.2,2714.6,3.68377]
[1739971881186,0.7692,2715.2,2714.7,3.68356]
[1739971881689,4.45219,2715.2,2714.6,0.838808]
[1739971881883,4.45219,2715.2,2714.7,3.68354]
[1739971881884,0.7692,2715.2,2714.7,3.68354]
[1739971882182,0.7692,2715.2,2714.8,3.6835]
[1739971882558,0.7692,2715.2,2714.7,3.68357]
[1739971882748,0.7692,2715.2,2714.8,3.68344]
[1739971883951,0.7692,2715.2,2714.7,3.63358]
[1739971884788,0.7692,2715.2,2714.8,3.68349]
[1739971884958,0.7684,2715.2,2714.8,3.68349]
[1739971885164,0.7684,2715.2,2714.8,7.3669]
[1739971885600,0.7684,2715.2,2714.8,3.68341]
[1739971885822,4.4515,2715.2,2714.5,0.265]
[1739971886121,4.4515,2715.2,2714.5,3.68381]
[1739971886122,7.496573,2715.1,2714.5,3.68381]
[1739971886327,3.813433,2715.1,2714.4,3.68399]
[1739971886514,3.0,2715.1,2714.6,3.68378]
[1739971886828,6.68315,2715.1,2714.6,3.68378]
[1739971887027,3.0,2715.1,2714.6,3.68378]
[1739971887527,3.0,2715.2,2714.6,3.68378]
[1739971887729,4.351393,2715.1,2714.6,3.68378]
[1739971887931,0.7504,2715.0,2714.6,3.68378]
[1739971888431,0.7504,2715.0,2714.7,3.68361]
[1739971889137,0.7504,2715.0,2714.4,3.68395]
[1739971889343,0.7504,2715.0,2714.6,3.68377]
[1739971889501,1.5605793,2715.0,2714.6,3.63377]
[1739971890144,1.5605793,2715.0,2714.6,7.31745]
[1739971890434,1.5605793,2715.0,2714.6,3.63377]
[1739971890639,1.5605793,2715.0,2714.6,3.68374]
[1739971890844,1.5605793,2715.0,2714.5,3.68391]
[1739971891013,4.27463223,2714.9,2714.3,3.68416]
[1739971891214,0.8092,2714.8,2714.3,3.68416]
[1739971891424,0.8092,2714.8,2714.4,3.68399]
[1739971891809,0.8092,2714.8,2714.3,3.68412]
[1739971892135,0.8092,2714.8,2714.2,9.01038521]
[1739971892136,0.8092,2714.8,2714.2,12.69457521]
[1739971892337,1.63946293,2714.8,2714.4,3.68393]
[1739971892641,1.63946293,2714.8,2714.5,3.6839]
[1739971892864,0.8092,2714.8,2714.5,3.6839]
[1739971893415,0.8092,2714.8,2714.6,3.68378]
[1739971893816,0.8092,2714.8,2714.2,1.49828521]
[1739971894024,0.7502,2715.3,2714.7,3.68364]
[1739971894216,0.7502,2715.3,2714.8,3.68339]
[1739971894443,0.45379913,2715.2,2714.9,3.68336]
[1739971894641,0.7502,2715.3,2715.0,3.68322]
[1739971894839,0.7502,2715.3,2715.1,3.68306]
[1739971895261,0.8275,2715.5,2715.2,3.6829]
[1739971895458,0.8275,2715.5,2715.1,4.4351]
[1739971895744,0.8275,2715.5,2715.3,3.68281]
[1739971895910,0.8275,2715.5,2715.2,3.68294]
[1739971896112,0.8275,2715.5,2715.1,4.4351]
[1739971896311,0.8275,2715.5,2715.1,3.683]
[1739971896513,0.8275,2715.5,2715.3,3.68282]
[1739971896725,0.8275,2715.5,2715.2,3.6829]
[1739971896929,0.8275,2715.5,2715.3,3.68282]
[1739971900149,0.801,2715.8,2715.4,3.68269]
[1739971900451,0.3801,2715.7,2715.4,3.68269]
[1739971900815,0.801,2715.8,2715.5,3.68247]
[1739971901015,0.801,2715.8,2715.3,4.44863]
[1739971901222,0.801,2715.8,2715.4,3.68266]
[1739971902244,4.48316,2715.8,2715.2,3.68287]
[1739971902447,0.8192,2715.6,2715.2,3.68287]
[1739971902653,0.8192,2715.6,2715.3,3.68282]
[1739971903570,0.8192,2715.6,2715.2,3.68287]
[1739971903750,0.8192,2715.6,2715.3,3.68282]
[1739971903920,0.8192,2715.6,2715.3,3.68279]
[1739971904147,0.8192,2715.6,2715.0,3.68313]
[1739971904353,0.7947,2715.5,2714.9,3.68336]
[1739971904554,4.47727,2715.5,2714.9,3.68336]
[1739971904883,0.7947,2715.4,2714.9,3.68336]
[1739971905065,0.7947,2715.4,2715.0,3.68315]
[1739971905242,0.7947,2715.4,2715.1,3.68304]
[1739971905444,0.7947,2715.4,2714.6,5.46191517]
[1739971905647,0.7947,2715.4,2715.0,3.68315]
[1739971906281,0.7947,2715.4,2714.9,7.36663]
[1739971906798,0.7947,2715.4,2714.9,3.68329]
[1739971906977,0.7947,2715.4,2715.1,3.6831]
[1739971907190,0.7947,2715.4,2714.8,0.03682995]
[1739971907387,0.7947,2715.4,2714.9,0.934544]
[1739971907555,0.7947,2715.4,2714.9,3.68331]
[1739971907745,0.7947,2715.4,2714.9,7.36661]
[1739971908095,0.7947,2715.4,2714.9,7.3666]
[1739971908299,0.7947,2715.4,2714.9,3.6833]
[1739971908503,4.4774,2715.4,2714.9,3.6833]
[1739971908666,0.8023,2715.2,2714.9,3.6833]
[1739971908865,0.8023,2715.2,2714.7,5.36]
[1739971909051,4.48535,2715.2,2714.7,5.36]
[1739971909252,0.8023,2715.1,2714.7,5.36]
[1739971909771,0.8023,2715.1,2714.8,3.68341]
[1739971910380,0.8023,2715.1,2714.9,3.6833]
[1739971911369,0.787,2715.3,2715.1,3.68302]
[1739971912263,0.787,2715.3,2715.0,3.68317]
[1739971912554,0.787,2715.3,2714.9,3.68329]
[1739971912759,0.787,2715.3,2714.9,7.3666]
[1739971913253,0.787,2715.3,2715.0,3.68323]
[1739971913453,0.787,2715.3,2715.1,3.68309]
[1739971914285,0.787,2715.3,2714.9,3.68329]
[1739971914888,0.787,2715.3,2715.0,3.68317]
[1739971916000,0.787,2715.3,2714.7,0.7619]
[1739971916156,4.46987,2715.3,2714.7,0.7619]
[1739971916354,5.285128,2715.3,2714.7,4.44547]
[1739971916780,1.602258,2715.3,2714.6,0.265]
[1739971917101,1.602258,2715.3,2714.8,3.68345]
[1739971918405,1.602258,2715.3,2714.9,3.68327]
[1739971918720,5.285158,2715.3,2714.8,3.68349]
[1739971919611,1.602258,2715.3,2714.8,3.68349]
[1739971919810,0.787,2715.3,2714.8,3.68349]
[1739971920454,0.785,2715.6,2714.8,0.7571]
[1739971920690,0.785,2715.6,2715.3,3.68282]
[1739971920858,0.785,2715.6,2715.1,3.68302]
[1739971921709,0.785,2715.6,2715.3,3.68281]
[1739971921917,0.785,2715.6,2715.3,7.36556]
[1739971922057,0.785,2715.6,2715.5,3.68256]
[1739971922410,0.8131,2715.8,2715.5,3.68256]
[1739971923201,0.8131,2715.8,2715.4,3.68269]
[1739971924263,5.244832,2715.8,2715.2,4.44884]
[1739971924454,5.244832,2715.8,2715.2,3.68294]
[1739971924660,3.6823,2715.7,2715.1,3.68301]
[1739971924961,3.6823,2715.7,2715.1,7.36602]
[1739971925305,3.6823,2715.7,2715.1,3.68301]
[1739971925519,1.1926932,2715.7,2715.2,3.68289]
[1739971927511,1.1926932,2715.7,2715.3,3.68282]
[1739971927862,1.1926932,2715.7,2715.4,3.68262]
[1739971928093,0.8131,2715.8,2715.4,3.68262]
[1739971928358,0.8131,2715.8,2715.0,1.0309]
[1739971928359,0.8131,2715.8,2715.5,3.68244]
[1739971928594,0.8009,2716.2,2715.7,3.68222]
[1739971928769,7.48255,2716.2,2715.7,3.68222]
[1739971928985,3.8009,2716.2,2715.7,3.68222]
[1739971929505,3.68208,2715.9,2715.3,3.6827]
[1739971929715,0.7597,2716.0,2715.5,3.68243]
[1739971930066,0.7597,2716.0,2715.6,3.6824]
[1739971931687,4.4416,2716.0,2715.4,3.68261]
[1739971931887,3.68202,2715.9,2715.4,3.68261]
[1739971934041,0.7664,2715.8,2715.4,3.68261]
[1739971935123,0.7664,2715.8,2715.5,3.68248]
[1739971935327,0.7664,2715.8,2715.4,3.68262]
[1739971935519,0.7664,2715.8,2715.3,3.68274]
[1739971935694,0.7664,2715.8,2715.3,3.68273]
[1739971936088,4.44862,2715.8,2715.2,3.68296]
[1739971936556,3.68242,2715.6,2715.1,3.68304]
[1739971936725,0.8028,2715.5,2715.1,3.68304]
[1739971937494,0.8028,2715.5,2715.2,3.68295]
[1739971938201,0.8028,2715.5,2715.3,3.68283]
[1739971938948,0.8028,2715.5,2715.4,3.68269]
[1739971939315,0.8028,2715.5,2714.9,9.79208782]
[1739971939515,0.8028,2715.5,2715.2,3.68289]
[1739971939697,0.8028,2715.5,2715.3,3.68282]
[1739971940755,0.8028,2715.5,2715.4,3.68269]
[1739971941620,0.8028,2715.5,2715.3,7.36557]
[1739971941957,0.787,2715.8,2715.3,3.68275]
[1739971942139,1.1657,2715.8,2715.4,3.6826]
[1739971942456,0.787,2715.8,2715.6,3.6824]
[1739971942753,9.810005,2716.1,2715.6,3.6824]
[1739971942906,0.787,2716.0,2715.6,3.6824]
[1739971943102,0.787,2716.0,2715.8,3.68209]
[1739971943757,3.8295,2716.2,2715.8,3.68209]
[1739971943906,1.580585,2716.2,2715.8,3.68209]
[1739971944246,1.580585,2716.2,2715.6,0.7549]
[1739971944247,3.8295,2716.4,2716.0,3.68182]
[1739971944958,3.8295,2716.4,2715.8,3.68208]
[1739971945151,7.51093,2716.4,2715.8,3.68208]
[1739971945335,3.8295,2716.4,2715.7,3.68224]
[1739971945512,3.8295,2716.4,2715.9,3.682]
[1739971945723,4.580571,2716.4,2716.0,3.68187]
[1739971946429,9.06075,2716.9,2716.1,3.68174]
[1739971946634,9.06075,2716.9,2715.5,3.94754]
[1739971946635,3.68093,2716.7,2716.2,3.68155]
[1739971946831,3.0,2716.6,2716.2,3.68155]
[1739971947036,7.426823,2716.6,2716.0,4.44767]
[1739971947233,0.7758,2716.5,2716.0,0.7659]
[1739971947462,0.7758,2716.5,2715.9,3.68201]
[1739971947753,0.7758,2716.5,2716.1,3.68166]
[1739971948087,0.7758,2716.5,2716.2,3.68161]
[1739971948734,0.7758,2716.5,2716.3,3.68146]
[1739971948935,0.777,2716.7,2716.4,3.68134]
[1739971951274,3.0,2716.8,2716.5,3.68113]
[1739971952077,0.8128,2716.9,2716.6,3.68096]
[1739971952279,0.7956,2717.1,2716.8,3.68077]
[1739971952487,3.68013,2717.3,2716.8,3.68068]
[1739971952767,0.7956,2717.4,2716.6,3.68097]
[1739971952966,6.6802,2717.3,2716.6,3.68097]
[1739971953189,3.0,2717.3,2716.7,3.68093]
[1739971953387,3.747568,2717.3,2716.7,3.68093]
[1739971953894,3.747568,2717.3,2716.6,3.68107]
[1739971954199,3.747568,2717.3,2716.8,3.68079]
[1739971954841,3.68032,2717.2,2716.7,3.6809]
[1739971955044,3.68032,2717.2,2716.6,3.68097]
[1739971955254,4.5026688,2717.2,2716.6,3.68097]
[1739971955493,4.5026688,2717.2,2716.6,7.36194]
[1739971955790,4.5026688,2717.2,2716.6,3.68097]
[1739971955963,4.5026688,2717.2,2716.7,3.68089]
[1739971956961,0.8223488,2717.2,2716.7,3.68082]
[1739971957964,0.8223488,2717.2,2716.7,3.6808]
[1739971958494,4.5026888,2717.2,2716.7,3.6808]
[1739971959183,3.68072,2716.9,2716.3,9.30646]
[1739971959364,0.8076,2716.8,2716.3,9.30646]
[1739971959566,3.68094,2716.7,2716.3,5.36]
[1739971959978,4.48841,2716.8,2716.3,5.36]
[1739971961327,3.68103,2716.7,2716.3,5.36]
[1739971961883,3.68103,2716.7,2716.2,3.6816]
[1739971962425,4.48841,2716.8,2716.2,3.6816]
[1739971962624,4.129823,2716.7,2716.1,3.68173]
[1739971962920,0.448863,2716.7,2716.2,3.68156]
[1739971963425,4.48841,2716.8,2716.3,3.6814]
[1739971964747,0.8076,2716.8,2716.4,3.68133]
[1739971965313,0.8076,2716.8,2716.5,3.68109]
[1739971965500,0.7765,2717.0,2716.6,3.68099]
[1739971967753,4.45708,2717.0,2716.4,4.44712]
[1739971968632,3.68072,2716.9,2716.3,3.68146]
[1739971968844,4.50985,2716.8,2716.2,3.68152]
[1739971969355,4.50985,2716.8,2716.3,3.68141]
[1739971969564,0.829,2716.8,2716.3,3.68141]
[1739971969757,0.829,2716.8,2716.1,5.36]
[1739971969961,0.829,2716.8,2716.5,3.68117]
[1739971970754,0.829,2716.8,2716.5,7.36227]
[1739971970960,0.829,2716.8,2716.6,3.68104]
[1739971972065,0.829,2716.8,2716.6,3.68107]
[1739971972227,0.7507,2717.0,2716.7,3.68093]
[1739971972419,3.0,2717.2,2716.7,3.68086]
[1739971972613,0.7507,2717.2,2716.9,3.68061]
[1739971972818,4.43096,2717.2,2716.7,0.7659]
[1739971973027,4.43096,2717.2,2716.6,3.68095]
[1739971973616,4.43096,2717.2,2716.6,7.36195]
[1739971973813,0.7507,2717.2,2716.8,3.68079]
[1739971974157,0.7507,2717.2,2716.6,4.52029166]
[1739971974361,0.7507,2717.2,2716.8,3.68078]
[1739971974659,0.7507,2717.2,2716.9,3.68054]
[1739971974863,0.7507,2717.2,2717.0,3.68052]
[1739971975023,0.7507,2717.2,2716.8,3.68068]
[1739971975705,0.7507,2717.2,2716.9,0.03680332]
[1739971975957,0.7507,2717.2,2716.6,0.83934166]
[1739971976157,0.7507,2717.2,2717.0,3.68052]
[1739971977464,0.7507,2717.2,2716.9,3.68061]
[1739971978325,0.7507,2717.2,2716.9,7.36122]
[1739971978519,0.7507,2717.2,2716.9,3.68061]
[1739971978723,0.8006,2717.5,2717.1,3.68039]
[1739971979153,4.4805,2717.5,2717.1,3.68039]
[1739971979337,5.2469147,2717.5,2717.1,3.68039]
[1739971980306,1.5670147,2717.5,2717.1,3.68039]
[1739971981057,1.5670147,2717.5,2716.9,4.43681]
[1739971981298,5.2469947,2717.5,2716.9,3.68061]
[1739971981999,5.2469947,2717.5,2717.0,3.68049]
[1739971982187,0.8006,2717.5,2717.1,3.68039]
[1739971982384,0.8006,2717.5,2717.2,3.68022]
[1739971982566,0.8661,2717.8,2717.5,3.67981]
[1739971982758,0.1008,2717.8,2717.7,3.67958]
[1739971983767,0.1008,2717.8,2717.7,4.49462837]
[1739971984302,0.1008,2717.8,2717.7,5.26052837]
[1739971986096,0.1008,2717.8,2717.7,5.29731484]
[1739971986513,0.1008,2717.8,2717.7,5.26052837]
[1739971986666,0.1008,2717.8,2717.7,4.44548]
[1739971986987,0.1008,2717.8,2717.7,3.94458]
[1739971988507,0.1008,2717.8,2717.7,10.07048]
[1739971993375,0.1008,2717.8,2717.7,5.36]
[1739971994223,0.1008,2717.8,2717.7,5.2616]
[1739971994577,0.1008,2717.8,2717.4,3.67997]
[1739971995304,0.1008,2717.8,2717.5,3.67983]
[1739971995509,0.1008,2717.8,2717.4,3.67997]
[1739971995821,0.1008,2717.8,2717.3,8.94167]